lending/lending_fUSD_20250303
["ID","MTS","AMOUNT","RATE_DAILY","PERIOD"]
[355207712,1741011032332,-614.26907122,0.00014743,2]
[355207713,1741011032345,-216.96442693,0.00014743,2]
[355207714,1741011032355,-614.26907122,0.00014765,2]
[355207715,1741011032365,-216.96442693,0.00014765,2]
[355207716,1741011032377,-160.03302035,0.00014773,2]
[355207717,1741011032389,-160.19454357,0.00014773,2]
[355207718,1741011032399,-160.03389867,0.00014773,2]
[355207719,1741011032408,-502.41339455,0.00014773,2]
[355207720,1741011032418,-500.0,0.00014773,2]
[355207721,1741011032428,-500.0,0.00014773,2]
[355207722,1741011032438,-484.73112594,0.00014777,2]
[355207723,1741011032448,-32515.8618,0.00014778,2]
[355207724,1741011032457,-5000.0,0.00014778,2]
[355207725,1741011032467,-280.04,0.00014784,2]
[355207726,1741011032476,-614.26907122,0.00014788,2]
[355207727,1741011032486,-216.96442693,0.00014788,2]
[355207728,1741011032496,-939.78,0.00014797,2]
[355207729,1741011032506,-500.0,0.00014797,2]
[355207730,1741011032515,-2263.635887,0.00014797,2]
[355207731,1741011032524,-2763.91,0.00014797,2]
[355207732,1741011032534,-1385.6,0.00014797,2]
[355207733,1741011032544,-153.337711,0.00014797,2]
[355207734,1741011032554,-500.0,0.00014797,2]
[355207735,1741011032564,-150.369306,0.00014797,2]
[355207736,1741011032574,-4466.26,0.00014797,2]
[355207737,1741011032584,-1751.4,0.00014797,2]
[355207738,1741011032594,-1874.46,0.00014797,2]
[355207739,1741011032604,-2078.93,0.00014797,2]
[355207740,1741011032614,-1690.797855,0.00014797,2]
[355207741,1741011032623,-2037.81,0.00014797,2]
[355207742,1741011032633,-500.0,0.00014797,2]
[355207743,1741011032643,-1130.41,0.00014797,2]
[355207744,1741011032652,-5567.23,0.00014797,2]
[355207745,1741011032662,-811.26,0.00014797,2]
[355207746,1741011032671,-1316.28,0.00014797,2]
[355207747,1741011032681,-7422.11,0.00014797,2]
[355207748,1741011032691,-730.42,0.00014797,2]
[355207749,1741011032700,-776.98,0.00014797,2]
[355207750,1741011032711,-996.07,0.00014797,2]
[355207751,1741011032721,-1592.53,0.00014797,2]
[355207752,1741011032733,-1972.48,0.00014797,2]
[355207753,1741011032743,-1452.25,0.00014797,2]
[355207754,1741011032753,-1449.73,0.00014797,2]
[355207755,1741011032762,-1886.9,0.00014797,2]
[355207756,1741011032772,-902.21,0.00014797,2]
[355207757,1741011032782,-1191.32,0.00014797,2]
[355207758,1741011032792,-500.0,0.00014797,2]
[355207759,1741011032801,-500.0,0.00014797,2]
[355207760,1741011032811,-725.89,0.00014797,2]
[355207761,1741011032821,-628.66,0.00014797,2]
[355207762,1741011032831,-1563.97,0.00014797,2]
[355207763,1741011032842,-892.61,0.00014797,2]
[355207764,1741011032851,-1118.83,0.00014797,2]
[355207765,1741011032862,-500.0,0.00014797,2]
[355207766,1741011032872,-500.0,0.00014797,2]
[355207767,1741011032881,-1644.63,0.00014797,2]
[355207768,1741011032891,-1002.97,0.00014797,2]
[355207769,1741011032901,-7948.99919005,0.00014797,2]
[355207770,1741011032932,-1311.55080995,0.00014797,2]
[355207771,1741011032942,-1056.48,0.00014797,2]
[355207772,1741011032952,-639.25,0.00014797,2]
[355207773,1741011032962,-687.65,0.00014797,2]
[355207774,1741011032972,-500.0,0.00014797,2]
[355207775,1741011032984,-127.31919005,0.00014797,2]
[355207776,1741011033023,-782.22080995,0.00014797,2]
[355207777,1741011033033,-19266.88,0.00014797,2]
[355207778,1741011033044,-8138.91,0.00014797,2]
[355207779,1741011033054,-500.0,0.00014797,2]
[355207780,1741011033065,-1122.54,0.00014797,2]
[355207781,1741011033076,-563.21,0.00014797,2]
[355207782,1741011033087,-500.0,0.00014797,2]
[355207783,1741011033096,-1294.2,0.00014797,2]
[355207784,1741011033106,-731.28,0.00014797,2]
[355207785,1741011033116,-2884.0,0.00014797,2]
[355207786,1741011033125,-980.62,0.00014797,2]
[355207787,1741011033136,-500.0,0.00014797,2]
[355207788,1741011033146,-634.76737944,0.00014797,2]
[355207789,1741011033178,-771.94262056,0.00014797,2]
[355207790,1741011033188,-500.0,0.00014797,2]
[355207791,1741011033198,-500.0,0.00014797,2]
[355207792,1741011033208,-1002.2,0.00014797,2]
[355207793,1741011033218,-500.0,0.00014797,2]
[355207794,1741011033228,-690.38,0.00014797,2]
[355207795,1741011033238,-12722.72,0.00014797,2]
[355207796,1741011033248,-500.0,0.00014797,2]
[355207797,1741011033258,-500.0,0.00014798,2]
[355207798,1741011033268,-500.0,0.00014798,2]
[355207799,1741011033278,-648.82,0.00014798,2]
[355207800,1741011033288,-500.0,0.00014798,2]
[355207801,1741011033298,-500.0,0.00014798,2]
[355207802,1741011033308,-515.41391976,0.00014798,2]
[355207803,1741011033318,-500.0,0.00014798,2]
[355207804,1741011033328,-644.54305717,0.00014798,2]
[355207805,1741011033340,-501.71745098,0.00014798,2]
[355207806,1741011033351,-500.0,0.00014798,2]
[355207807,1741011033361,-500.0,0.00014798,2]
[355207808,1741011033372,-500.0,0.00014798,2]
[355207809,1741011033382,-513.13658797,0.00014798,2]
[355207810,1741011033392,-519.25697053,0.00014798,2]
[355207811,1741011033401,-500.0,0.00014798,2]
[355207812,1741011033411,-959.5,0.00014798,2]
[355207813,1741011033421,-517.92222698,0.00014798,2]
[355207814,1741011033430,-500.0,0.00014798,2]
[355207815,1741011033440,-500.0,0.00014798,2]
[355207816,1741011033449,-455.33137295,0.00014798,2]
[355207817,1741011033459,-500.0,0.00014798,2]
[355207818,1741011033474,-500.0,0.00014798,2]
[355207819,1741011033592,-500.0,0.00014798,2]
[355207820,1741011033602,-500.0,0.00014798,2]
[355207821,1741011033612,-500.0,0.00014798,2]
[355207822,1741011033622,-500.0,0.00014798,2]
[355207823,1741011033632,-500.0,0.00014798,2]
[355207824,1741011033642,-500.0,0.00014798,2]
[355207825,1741011033651,-500.0,0.00014798,2]
[355207826,1741011033662,-520.80799377,0.00014798,2]
[355207827,1741011033671,-500.0,0.00014798,2]
[355207828,1741011033680,-231.9831472,0.00014798,2]
[355207829,1741011033690,-500.0,0.00014798,2]
[355207830,1741011033700,-538.34,0.00014798,2]
[355207831,1741011033710,-500.0,0.00014798,2]
[355207832,1741011033719,-511.96268933,0.00014798,2]
[355207833,1741011033728,-616.33,0.00014798,2]
[355207834,1741011033738,-500.0,0.00014798,2]
[355207835,1741011033748,-863.73,0.00014798,2]
[355207836,1741011033757,-500.0,0.00014798,2]
[355207837,1741011033767,-748.77,0.00014798,2]
[355207838,1741011033776,-500.0,0.00014798,2]
[355207839,1741011033787,-500.0,0.00014798,2]
[355207840,1741011033796,-500.0,0.00014798,2]
[355207841,1741011033806,-500.0,0.00014798,2]
[355207842,1741011033816,-500.0,0.00014798,2]
[355207843,1741011033826,-991.12,0.00014798,2]
[355207844,1741011033838,-539.44874281,0.00014798,2]
[355207845,1741011033848,-712.15,0.00014798,2]
[355207846,1741011033859,-500.0,0.00014798,2]
[355207847,1741011033869,-799.98,0.00014798,2]
[355207848,1741011033880,-514.66083261,0.00014798,2]
[355207849,1741011033891,-529.4917064,0.00014798,2]
[355207850,1741011033901,-500.0,0.00014798,2]
[355207851,1741011033911,-500.0,0.00014798,2]
[355207852,1741011033920,-640.64041097,0.00014798,2]
[355207853,1741011033930,-500.0,0.00014798,2]
[355207854,1741011033940,-500.0,0.00014798,2]
[355207855,1741011033950,-605.18,0.00014798,2]
[355207856,1741011033960,-500.0,0.00014798,2]
[355207857,1741011033974,-1289.52,0.00014798,2]
[355207858,1741011033984,-500.0,0.00014798,2]
[355207859,1741011033994,-500.0,0.00014798,2]
[355207860,1741011034003,-500.0,0.00014798,2]
[355207861,1741011034015,-513.82661195,0.00014798,2]
[355207862,1741011034025,-872.22,0.00014798,2]
[355207863,1741011034034,-500.0,0.00014798,2]
[355207864,1741011034044,-525.34,0.00014798,2]
[355207865,1741011034054,-500.0,0.00014798,2]
[355207866,1741011034076,-500.0,0.00014798,2]
[355207867,1741011034097,-500.0,0.00014798,2]
[355207868,1741011034107,-500.0,0.00014798,2]
[355207869,1741011034118,-500.0,0.00014798,2]
[355207870,1741011034127,-500.0,0.00014798,2]
[355207871,1741011034137,-500.0,0.00014798,2]
[355207872,1741011034146,-500.0,0.00014798,2]
[355207873,1741011034156,-500.0,0.00014798,2]
[355207874,1741011034166,-500.0,0.00014798,2]
[355207875,1741011034175,-500.0,0.00014798,2]
[355207876,1741011034185,-500.0,0.00014798,2]
[355207877,1741011034195,-500.0,0.00014798,2]
[355207878,1741011034204,-500.0,0.00014798,2]
[355207879,1741011034214,-500.0,0.00014798,2]
[355207880,1741011034224,-500.0,0.00014798,2]
[355207881,1741011034233,-510.48,0.00014798,2]
[355207882,1741011034243,-305.00346223,0.00014798,2]
[355207883,1741011034252,-500.0,0.00014798,2]
[355207884,1741011034262,-500.0,0.00014798,2]
[355207885,1741011034271,-609.27,0.00014798,2]
[355207886,1741011034285,-500.0,0.00014798,2]
[355207887,1741011034310,-500.0,0.00014798,2]
[355207888,1741011034328,-500.0,0.00014798,2]
[355207889,1741011034352,-513.58582003,0.00014798,2]
[355207890,1741011034369,-500.00843437,0.00014798,2]
[355207891,1741011034386,-500.0,0.00014798,2]
[355207892,1741011034406,-500.0,0.00014798,2]
[355207893,1741011034427,-500.0,0.00014798,2]
[355207894,1741011034447,-500.0,0.00014798,2]
[355207895,1741011034466,-500.0,0.00014798,2]
[355207896,1741011034487,-523.74024005,0.00014798,2]
[355207897,1741011034504,-500.0,0.00014798,2]
[355207898,1741011034524,-500.0,0.00014798,2]
[355207899,1741011034539,-500.0,0.00014798,2]
[355207900,1741011034558,-533.55854632,0.00014798,2]
[355207901,1741011034573,-500.0,0.00014798,2]
[355207902,1741011034589,-500.0,0.00014798,2]
[355207903,1741011034608,-500.0,0.00014798,2]
[355207904,1741011034624,-597.83,0.00014798,2]
[355207905,1741011034640,-500.0,0.00014798,2]
[355207906,1741011034656,-500.0,0.00014798,2]
[355207907,1741011034673,-500.0,0.00014798,2]
[355207908,1741011034689,-500.0,0.00014798,2]
[355207909,1741011034705,-289.46912,0.00014798,2]
[355207910,1741011034722,-500.0,0.00014798,2]
[355207911,1741011034737,-500.0,0.00014798,2]
[355207912,1741011034753,-500.0,0.00014798,2]
[355207913,1741011034768,-500.0,0.00014798,2]
[355207914,1741011034785,-500.0,0.00014798,2]
[355207915,1741011034802,-500.0,0.00014798,2]
[355207916,1741011034818,-500.0,0.00014798,2]
[355207917,1741011034833,-500.0,0.00014798,2]
[355207918,1741011034850,-500.0,0.00014798,2]
[355207919,1741011034867,-500.0,0.00014798,2]
[355207920,1741011034884,-500.0,0.00014798,2]
[355207921,1741011034899,-500.0,0.00014798,2]
[355207922,1741011034916,-500.0,0.00014798,2]
[355207923,1741011034931,-500.0,0.00014798,2]
[355207924,1741011034947,-500.0,0.00014798,2]
[355207925,1741011034964,-500.0,0.00014798,2]
[355207926,1741011034982,-500.0,0.00014798,2]
[355207927,1741011035000,-500.0,0.00014798,2]
[355207928,1741011035018,-576.41,0.00014798,2]
[355207929,1741011035035,-986.41,0.00014798,2]
[355207930,1741011035054,-500.0,0.00014798,2]
[355207931,1741011035074,-500.0,0.00014798,2]
[355207932,1741011035089,-500.0,0.00014798,2]
[355207933,1741011035106,-500.0,0.00014798,2]
[355207934,1741011035121,-500.0,0.00014798,2]
[355207935,1741011035137,-500.0,0.00014798,2]
[355207936,1741011035153,-500.0,0.00014798,2]
[355207937,1741011035170,-500.0,0.00014798,2]
[355207938,1741011035186,-500.0,0.00014798,2]
[355207939,1741011035202,-500.0,0.00014798,2]
[355207940,1741011035218,-500.0,0.00014798,2]
[355207941,1741011035233,-500.0,0.00014798,2]
[355207942,1741011035251,-500.0,0.00014798,2]
[355207943,1741011035267,-500.0,0.00014798,2]
[355207944,1741011035283,-506.43,0.00014798,2]
[355207945,1741011035298,-782.09,0.00014798,2]
[355207946,1741011035313,-920.93,0.00014798,2]
[355207947,1741011035328,-500.0,0.00014798,2]
[355207948,1741011035344,-500.0,0.00014798,2]
[355207949,1741011035362,-500.0,0.00014798,2]
[355207950,1741011035377,-500.0,0.00014798,2]
[355207951,1741011035393,-584.2,0.00014798,2]
[355207952,1741011035566,-500.0,0.00014798,2]
[355207953,1741011035594,-500.0,0.00014798,2]
[355207954,1741011035604,-500.0,0.00014798,2]
[355207955,1741011035614,-1068.69,0.00014798,2]
[355207956,1741011035623,-500.0,0.00014798,2]
[355207957,1741011035633,-212.7457524,0.00014798,2]
[355207958,1741011035643,-500.0,0.00014798,2]
[355207959,1741011035652,-500.0,0.00014798,2]
[355207960,1741011035662,-259.92276111,0.00014798,2]
[355207961,1741011035671,-569.98,0.00014798,2]
[355207962,1741011035680,-500.0,0.00014798,2]
[355207963,1741011035690,-500.0,0.00014798,2]
[355207964,1741011035700,-500.0,0.00014798,2]
[355207965,1741011035709,-500.0,0.00014798,2]
[355207966,1741011035718,-500.0,0.00014798,2]
[355207967,1741011035728,-818.34,0.00014798,2]
[355207968,1741011035737,-500.0,0.00014798,2]
[355207969,1741011035747,-500.0,0.00014798,2]
[355207970,1741011035757,-500.0,0.00014798,2]
[355207971,1741011035767,-673.11,0.00014798,2]
[355207972,1741011035777,-500.0,0.00014798,2]
[355207973,1741011035787,-644.74,0.00014798,2]
[355207974,1741011035797,-500.0,0.00014798,2]
[355207975,1741011035807,-500.0,0.00014798,2]
[355207976,1741011035816,-500.0,0.00014798,2]
[355207977,1741011035826,-643.38,0.00014798,2]
[355207978,1741011035835,-500.0,0.00014798,2]
[355207979,1741011035846,-500.0,0.00014798,2]
[355207980,1741011035855,-500.0,0.00014798,2]
[355207981,1741011035865,-500.0,0.00014798,2]
[355207982,1741011035874,-500.0,0.00014798,2]
[355207983,1741011035884,-666.24,0.00014798,2]
[355207984,1741011035894,-506.12,0.00014798,2]
[355207985,1741011035903,-500.0,0.00014798,2]
[355207986,1741011035913,-500.0,0.00014798,2]
[355207987,1741011035922,-500.0,0.00014798,2]
[355207988,1741011035932,-500.0,0.00014798,2]
[355207989,1741011035941,-2760.81,0.00014798,2]
[355207990,1741011035951,-508.38,0.00014798,2]
[355207991,1741011035961,-500.0,0.00014798,2]
[355207992,1741011035976,-500.0,0.00014798,2]
[355207993,1741011035986,-599.66,0.00014798,2]
[355207994,1741011035996,-500.0,0.00014798,2]
[355207995,1741011036008,-500.0,0.00014798,2]
[355207996,1741011036018,-238.53586579,0.00014798,2]
[355207997,1741011036028,-500.0,0.00014798,2]
[355207998,1741011036039,-500.0,0.00014798,2]
[355207999,1741011036051,-500.0,0.00014798,2]
[355208000,1741011036061,-500.0,0.00014798,2]
[355208001,1741011036071,-500.0,0.00014798,2]
[355208002,1741011036080,-705.63,0.00014798,2]
[355208003,1741011036090,-500.0,0.00014798,2]
[355208004,1741011036099,-500.0,0.00014798,2]
[355208005,1741011036109,-500.0,0.00014798,2]
[355208006,1741011036119,-500.0,0.00014798,2]
[355208007,1741011036129,-500.0,0.00014798,2]
[355208008,1741011036138,-500.0,0.00014798,2]
[355208009,1741011036148,-792.78,0.00014798,2]
[355208010,1741011036158,-500.0,0.00014798,2]
[355208011,1741011036171,-500.0,0.00014798,2]
[355208012,1741011036182,-500.0,0.00014798,2]
[355208013,1741011036192,-516.67,0.00014798,2]
[355208014,1741011036202,-525.20983918,0.00014798,2]
[355208015,1741011036212,-500.0,0.00014798,2]
[355208016,1741011036223,-500.0,0.00014798,2]
[355208017,1741011036233,-500.0,0.00014798,2]
[355208018,1741011036247,-500.0,0.00014798,2]
[355208019,1741011036257,-500.0,0.00014798,2]
[355208020,1741011036266,-500.0,0.00014798,2]
[355208021,1741011036275,-500.0,0.00014798,2]
[355208022,1741011036286,-500.0,0.00014798,2]
[355208023,1741011036301,-876.8,0.00014798,2]
[355208024,1741011036314,-500.0,0.00014798,2]
[355208025,1741011036327,-500.0,0.00014798,2]
[355208026,1741011036340,-500.0,0.00014798,2]
[355208027,1741011036351,-500.0,0.00014798,2]
[355208028,1741011036363,-500.0,0.00014798,2]
[355208029,1741011036373,-500.0,0.00014798,2]
[355208030,1741011036382,-500.0,0.00014798,2]
[355208031,1741011036392,-500.0,0.00014798,2]
[355208032,1741011036402,-795.48,0.00014798,2]
[355208033,1741011036411,-500.0,0.00014798,2]
[355208034,1741011036420,-500.0,0.00014798,2]
[355208035,1741011036429,-500.0,0.00014798,2]
[355208036,1741011036439,-829.27,0.00014798,2]
[355208037,1741011036449,-500.0,0.00014798,2]
[355208038,1741011036459,-500.0,0.00014798,2]
[355208039,1741011036469,-500.0,0.00014798,2]
[355208040,1741011036478,-500.0,0.00014798,2]
[355208041,1741011036488,-500.0,0.00014798,2]
[355208042,1741011036498,-500.0,0.00014798,2]
[355208043,1741011036508,-500.0,0.00014798,2]
[355208044,1741011036518,-500.0,0.00014798,2]
[355208045,1741011036527,-528.0,0.00014798,2]
[355208046,1741011036537,-527.85077557,0.00014798,2]
[355208047,1741011036547,-500.0,0.00014798,2]
[355208048,1741011036556,-500.0,0.00014798,2]
[355208049,1741011036567,-500.0,0.00014798,2]
[355208050,1741011036576,-500.0,0.00014798,2]
[355208051,1741011036586,-554.70548004,0.00014798,2]
[355208052,1741011036600,-500.0,0.00014798,2]
[355208053,1741011036610,-500.0,0.00014798,2]
[355208054,1741011036620,-500.0,0.00014798,2]
[355208055,1741011036630,-500.0,0.00014798,2]
[355208056,1741011036641,-500.0,0.00014798,2]
[355208057,1741011036650,-677.4,0.00014798,2]
[355208058,1741011036660,-1166.58,0.00014798,2]
[355208059,1741011036671,-500.0,0.00014798,2]
[355208060,1741011036681,-500.0,0.00014798,2]
[355208061,1741011036692,-500.0,0.00014798,2]
[355208062,1741011036702,-609.57,0.00014798,2]
[355208063,1741011036713,-500.0,0.00014798,2]
[355208064,1741011036724,-500.0,0.00014798,2]
[355208065,1741011036733,-570.81,0.00014798,2]
[355208066,1741011036743,-500.0,0.00014798,2]
[355208067,1741011036754,-500.0,0.00014798,2]
[355208068,1741011036764,-594.77,0.00014798,2]
[355208069,1741011036774,-769.65,0.00014798,2]
[355208070,1741011036784,-500.0,0.00014798,2]
[355208071,1741011036794,-500.0,0.00014798,2]
[355208072,1741011036804,-500.0,0.00014798,2]
[355208073,1741011036815,-532.66165963,0.00014798,2]
[355208074,1741011036826,-500.0,0.00014798,2]
[355208075,1741011036836,-500.0,0.00014798,2]
[355208076,1741011036853,-506.96329468,0.00014798,2]
[355208077,1741011036863,-500.0,0.00014798,2]
[355208078,1741011036873,-500.0,0.00014798,2]
[355208079,1741011036885,-912.2,0.00014798,2]
[355208080,1741011036895,-521.89858303,0.00014798,2]
[355208081,1741011036905,-500.0,0.00014798,2]
[355208082,1741011036916,-500.0,0.00014798,2]
[355208083,1741011036927,-500.0,0.00014798,2]
[355208084,1741011036938,-568.76,0.00014798,2]
[355208085,1741011036949,-500.0,0.00014798,2]
[355208086,1741011036959,-1197.47,0.00014798,2]
[355208087,1741011036971,-500.0,0.00014798,2]
[355208088,1741011036984,-500.0,0.00014798,2]
[355208089,1741011036995,-349.47649666,0.00014798,2]
[355208090,1741011037007,-500.0,0.00014798,2]
[355208091,1741011037017,-500.0,0.00014798,2]
[355208092,1741011037027,-500.0,0.00014798,2]
[355208093,1741011037038,-500.0,0.00014798,2]
[355208094,1741011037049,-500.0,0.00014798,2]
[355208095,1741011037059,-500.0,0.00014798,2]
[355208096,1741011037070,-500.0,0.00014798,2]
[355208097,1741011037080,-500.0,0.00014798,2]
[355208098,1741011037093,-500.0,0.00014798,2]
[355208099,1741011037102,-500.0,0.00014798,2]
[355208100,1741011037113,-500.0,0.00014798,2]
[355208101,1741011037123,-176.27246207,0.00014798,2]
[355208102,1741011037133,-645.09,0.00014798,2]
[355208103,1741011037144,-1323.67,0.00014798,2]
[355208104,1741011037153,-500.0,0.00014798,2]
[355208105,1741011037163,-573.01,0.00014798,2]
[355208106,1741011037173,-500.0,0.00014798,2]
[355208107,1741011037183,-500.0,0.00014798,2]
[355208108,1741011037193,-746.84,0.00014798,2]
[355208109,1741011037202,-640.23,0.00014798,2]
[355208110,1741011037212,-500.0,0.00014798,2]
[355208111,1741011037222,-500.0,0.00014798,2]
[355208112,1741011037232,-917.99,0.00014798,2]
[355208113,1741011037242,-938.51,0.00014798,2]
[355208114,1741011037252,-500.0,0.00014798,2]
[355208115,1741011037262,-842.72,0.00014798,2]
[355208116,1741011037272,-500.0,0.00014798,2]
[355208117,1741011037282,-6587.84,0.00014798,2]
[355208118,1741011037292,-500.0,0.00014798,2]
[355208119,1741011037302,-500.0,0.00014798,2]
[355208120,1741011037312,-517.67078747,0.00014798,2]
[355208121,1741011037322,-865.74,0.00014798,2]
[355208122,1741011037331,-500.0,0.00014798,2]
[355208123,1741011037342,-957.14,0.00014798,2]
[355208124,1741011037352,-500.0,0.00014798,2]
[355208125,1741011037362,-500.0,0.00014798,2]
[355208126,1741011037372,-500.0,0.00014798,2]
[355208127,1741011037382,-599.07,0.00014798,2]
[355208128,1741011037391,-500.0,0.00014798,2]
[355208129,1741011037401,-500.0,0.00014798,2]
[355208130,1741011037411,-500.0,0.00014798,2]
[355208131,1741011037421,-500.0,0.00014798,2]
[355208132,1741011037430,-500.0,0.00014798,2]
[355208133,1741011037440,-500.0,0.00014798,2]
[355208134,1741011037450,-8386.84,0.00014798,2]
[355208135,1741011037459,-433.17176866,0.00014798,2]
[355208136,1741011037470,-500.0,0.00014798,2]
[355208137,1741011037479,-574.48706333,0.00014798,2]
[355208138,1741011037489,-500.0,0.00014798,2]
[355208139,1741011037499,-500.0,0.00014798,2]
[355208140,1741011037508,-500.0,0.00014798,2]
[355208141,1741011037517,-787.24,0.00014798,2]
[355208142,1741011037527,-500.0,0.00014798,2]
[355208143,1741011037537,-532.64,0.00014798,2]
[355208144,1741011037546,-500.0,0.00014798,2]
[355208145,1741011037555,-568.96,0.00014798,2]
[355208146,1741011037565,-712.39,0.00014798,2]
[355208147,1741011037575,-673.38,0.00014798,2]
[355208148,1741011037585,-3616.87,0.00014798,2]
[355208149,1741011037702,-500.0,0.00014798,2]
[355208150,1741011037719,-500.0,0.00014798,2]
[355208151,1741011037729,-500.0,0.00014798,2]
[355208153,1741011037739,-616.58,0.00014798,2]
[355208155,1741011037749,-7239.16,0.00014798,2]
[355208157,1741011037758,-500.0,0.00014798,2]
[355208159,1741011037768,-500.0,0.00014798,2]
[355208161,1741011037777,-500.0,0.00014798,2]
[355208163,1741011037787,-599.55,0.00014798,2]
[355208165,1741011037796,-500.0,0.00014798,2]
[355208167,1741011037806,-529.05,0.00014798,2]
[355208169,1741011037815,-757.62,0.00014798,2]
[355208170,1741011037825,-500.0,0.00014798,2]
[355208171,1741011037834,-500.0,0.00014798,2]
[355208172,1741011037845,-500.0,0.00014798,2]
[355208173,1741011037854,-500.0,0.00014798,2]
[355208174,1741011037864,-500.0,0.00014798,2]
[355208175,1741011037874,-500.0,0.00014798,2]
[355208176,1741011037883,-500.0,0.00014798,2]
[355208177,1741011037892,-531.58019116,0.00014798,2]
[355208178,1741011037902,-500.0,0.00014798,2]
[355208179,1741011037912,-500.0,0.00014798,2]
[355208181,1741011037921,-1224.19,0.00014798,2]
[355208183,1741011037930,-6456.02,0.00014798,2]
[355208184,1741011037940,-500.0,0.00014798,2]
[355208185,1741011037950,-500.0,0.00014798,2]
[355208186,1741011037959,-500.0,0.00014798,2]
[355208187,1741011037971,-500.0,0.00014798,2]
[355208188,1741011037983,-500.0,0.00014798,2]
[355208189,1741011037993,-953.68,0.00014798,2]
[355208190,1741011038003,-500.0,0.00014798,2]
[355208191,1741011038013,-500.0,0.00014798,2]
[355208192,1741011038023,-1015.43,0.00014798,2]
[355208193,1741011038033,-1614.11,0.00014798,2]
[355208194,1741011038043,-500.0,0.00014798,2]
[355208195,1741011038053,-500.0,0.00014798,2]
[355208196,1741011038064,-500.0,0.00014798,2]
[355208197,1741011038073,-500.0,0.00014798,2]
[355208198,1741011038083,-500.0,0.00014798,2]
[355208199,1741011038095,-781.23,0.00014798,2]
[355208200,1741011038105,-500.0,0.00014798,2]
[355208201,1741011038116,-2130.55,0.00014798,2]
[355208202,1741011038126,-500.0,0.00014798,2]
[355208203,1741011038137,-500.0,0.00014798,2]
[355208204,1741011038147,-500.0,0.00014798,2]
[355208205,1741011038158,-500.0,0.00014798,2]
[355208206,1741011038168,-500.0,0.00014798,2]
[355208207,1741011038178,-637.41,0.00014798,2]
[355208208,1741011038188,-500.0,0.00014798,2]
[355208209,1741011038197,-500.0,0.00014798,2]
[355208210,1741011038207,-500.0,0.00014798,2]
[355208211,1741011038217,-500.0,0.00014798,2]
[355208212,1741011038226,-725.96,0.00014798,2]
[355208213,1741011038236,-500.0,0.00014798,2]
[355208214,1741011038245,-509.35,0.00014798,2]
[355208215,1741011038255,-600.14,0.00014798,2]
[355208216,1741011038264,-522.93038862,0.00014798,2]
[355208217,1741011038273,-513.97292895,0.00014798,2]
[355208218,1741011038283,-2267.5,0.00014798,2]
[355208219,1741011038293,-500.0,0.00014798,2]
[355208220,1741011038303,-500.0,0.00014798,2]
[355208221,1741011038312,-500.0,0.00014798,2]
[355208222,1741011038322,-14035.39,0.00014798,2]